Workbook

Sheet Welcome
C1: Refresh the workbook whenever you want to get the most up-to-date data for this template. Go to the Data tab > Refresh All.
B3: Planets and comets
B4: To the stars and beyond! Discover facts about our planets and track the location of comets.
D7: The planets of the Solar System | J7: Compare planets by the numbers | P7: Learn fun facts about each planet
D8: Planet explorer | J8: Planet comparison | P8: Planet facts
D12: Track your favorite comets | I12: Get to know the comets of the Solar System | P12: Do more with data types
D13: Comet list | J13: Comet lookup | P13: Do more
B16: Give feedback to help us improve this template

Sheet Planet comparison
C3: Compare planets by the numbers
C4: Take a closer look at how different the planets are. The highest values for each property are highlighted in green.
E6: =IFERROR(_FV(E7,"image"), "No image ") ->  | F6: =IFERROR(_FV(F7,"image"), "No image") ->  | G6: =IFERROR(_FV(G7,"image"), "No image") ->  | H6: =IFERROR(_FV(H7,"image"), "No image") ->  | I6: =IFERROR(_FV(I7,"image"), "No image") ->  | J6: =IFERROR(_FV(J7,"image"), "No image") ->  | K6: =IFERROR(_FV(K7,"image"), "No image") ->  | L6: =IFERROR(_FV(L7,"image"), "No image") -> 
B8: Column1 | C8: Property | D8: Measurement | E8: Mercury | F8: Venus | G8: Earth | H8: Mars | I8: Jupiter | J8: Saturn | K8: Uranus | L8: Neptune
B9: Orbital properties | C9: Orbital properties
B10: Orbital properties | C10: Current distance from Earth | D10: au | E10: =IFERROR(_FV(_FV(E7,"compute orbital properties",TRUE),"distance from Earth",TRUE), "Data not available") -> 1.32 | F10: =IFERROR(_FV(_FV(F7,"compute orbital properties",TRUE),"distance from Earth",TRUE), "Data not available") -> 1.34 | G10: =IFERROR(_FV(_FV(G7,"compute orbital properties",TRUE),"distance from Earth",TRUE), "Data not available") -> 0.00 | H10: =IFERROR(_FV(_FV(H7,"compute orbital properties",TRUE),"distance from Earth",TRUE), "Data not available") -> 2.55 | I10: =IFERROR(_FV(_FV(I7,"compute orbital properties",TRUE),"distance from Earth",TRUE), "Data not available") -> 4.09 | J10: =IFERROR(_FV(_FV(J7,"compute orbital properties",TRUE),"distance from Earth",TRUE), "Data not available") -> 8.94 | K10: =IFERROR(_FV(_FV(K7,"compute orbital properties",TRUE),"distance from Earth",TRUE), "Data not available") -> 19.87 | L10: =IFERROR(_FV(_FV(L7,"compute orbital properties",TRUE),"distance from Earth",TRUE), "Data not available") -> 29.22
B11: Orbital properties | C11: Average orbit distance | D11: km | E11: =IFERROR(_FV(E7,"average orbit distance",TRUE),"Data not available") -> 0.40 | F11: =IFERROR(_FV(F7,"average orbit distance",TRUE),"Data not available") -> 0.72 | G11: =IFERROR(_FV(G7,"average orbit distance",TRUE),"Data not available") -> 1.00 | H11: =IFERROR(_FV(H7,"average orbit distance",TRUE),"Data not available") -> 1.53 | I11: =IFERROR(_FV(I7,"average orbit distance",TRUE),"Data not available") -> 5.21 | J11: =IFERROR(_FV(J7,"average orbit distance",TRUE),"Data not available") -> 9.55 | K11: =IFERROR(_FV(K7,"average orbit distance",TRUE),"Data not available") -> 19.21 | L11: =IFERROR(_FV(L7,"average orbit distance",TRUE),"Data not available") -> 30.07
B12: Orbital properties | C12: Orbital period | D12: Julian years | E12: =IFERROR(_FV(E7,"orbital period",TRUE),"Data not available") -> 0.24 | F12: =IFERROR(_FV(F7,"orbital period",TRUE),"Data not available") -> 0.62 | G12: =IFERROR(_FV(G7,"orbital period",TRUE),"Data not available") -> 1.00 | H12: =IFERROR(_FV(H7,"orbital period",TRUE),"Data not available") -> 1.88 | I12: =IFERROR(_FV(I7,"orbital period",TRUE),"Data not available") -> 11.86 | J12: =IFERROR(_FV(J7,"orbital period",TRUE),"Data not available") -> 29.45 | K12: =IFERROR(_FV(K7,"orbital period",TRUE),"Data not available") -> 84.02 | L12: =IFERROR(_FV(L7,"orbital period",TRUE),"Data not available") -> 164.79
B13: Orbital properties | C13: Average orbit velocity | D13: km/s | E13: =IFERROR(_FV(E7,"average orbit velocity",TRUE),"Data not available") -> 47.36 | F13: =IFERROR(_FV(F7,"average orbit velocity",TRUE),"Data not available") -> 35.02 | G13: =IFERROR(_FV(G7,"average orbit velocity",TRUE),"Data not available") -> 29.78 | H13: =IFERROR(_FV(H7,"average orbit velocity",TRUE),"Data not available") -> 24.08 | I13: =IFERROR(_FV(I7,"average orbit velocity",TRUE),"Data not available") -> 13.05 | J13: =IFERROR(_FV(J7,"average orbit velocity",TRUE),"Data not available") -> 9.64 | K13: =IFERROR(_FV(K7,"average orbit velocity",TRUE),"Data not available") -> 6.80 | L13: =IFERROR(_FV(L7,"average orbit velocity",TRUE),"Data not available") -> 5.43
B14: Orbital properties | C14: Orbital inclination | D14: degrees | E14: =IFERROR(_FV(E7,"orbital inclination",TRUE),"Data not available") -> 7.00 | F14: =IFERROR(_FV(F7,"orbital inclination",TRUE),"Data not available") -> 3.39 | G14: =IFERROR(_FV(G7,"orbital inclination",TRUE),"Data not available") -> 0.00 | H14: =IFERROR(_FV(H7,"orbital inclination",TRUE),"Data not available") -> 1.85 | I14: =IFERROR(_FV(I7,"orbital inclination",TRUE),"Data not available") -> 1.31 | J14: =IFERROR(_FV(J7,"orbital inclination",TRUE),"Data not available") -> 2.48 | K14: =IFERROR(_FV(K7,"orbital inclination",TRUE),"Data not available") -> 0.77 | L14: =IFERROR(_FV(L7,"orbital inclination",TRUE),"Data not available") -> 1.77
B15: Orbital properties | C15: Orbital eccentricity | E15: =IFERROR(_FV(E7,"orbital eccentricity",TRUE),"Data not available") -> 0.21 | F15: =IFERROR(_FV(F7,"orbital eccentricity",TRUE),"Data not available") -> 0.01 | G15: =IFERROR(_FV(G7,"orbital eccentricity",TRUE),"Data not available") -> 0.02 | H15: =IFERROR(_FV(H7,"orbital eccentricity",TRUE),"Data not available") -> 0.09 | I15: =IFERROR(_FV(I7,"orbital eccentricity",TRUE),"Data not available") -> 0.05 | J15: =IFERROR(_FV(J7,"orbital eccentricity",TRUE),"Data not available") -> 0.05 | K15: =IFERROR(_FV(K7,"orbital eccentricity",TRUE),"Data not available") -> 0.05 | L15: =IFERROR(_FV(L7,"orbital eccentricity",TRUE),"Data not available") -> 0.01
B16: Orbital properties
B17: Physical properties | C17: Physical properties
B18: Physical properties | C18: Equatorial radius | D18: km | E18: =IFERROR(_FV(E7,"equatorial radius",TRUE), "Data not available") -> 2439.70 | F18: =IFERROR(_FV(F7,"equatorial radius",TRUE), "Data not available") -> 6051.80 | G18: =IFERROR(_FV(G7,"equatorial radius",TRUE), "Data not available") -> 6378.14 | H18: =IFERROR(_FV(H7,"equatorial radius",TRUE), "Data not available") -> 3396.19 | I18: =IFERROR(_FV(I7,"equatorial radius",TRUE), "Data not available") -> 71492.00 | J18: =IFERROR(_FV(J7,"equatorial radius",TRUE), "Data not available") -> 60268.00 | K18: =IFERROR(_FV(K7,"equatorial radius",TRUE), "Data not available") -> 25559.00 | L18: =IFERROR(_FV(L7,"equatorial radius",TRUE), "Data not available") -> 24764.00
B19: Physical properties | C19: Mass | D19: kg | E19: =IFERROR(_FV(E7,"mass"), "Data not available") -> 3.30E+23 | F19: =IFERROR(_FV(F7,"mass"), "Data not available") -> 4.87E+24 | G19: =IFERROR(_FV(G7,"mass"), "Data not available") -> 5.97E+24 | H19: =IFERROR(_FV(H7,"mass"), "Data not available") -> 6.42E+23 | I19: =IFERROR(_FV(I7,"mass"), "Data not available") -> 1.90E+27 | J19: =IFERROR(_FV(J7,"mass"), "Data not available") -> 5.68E+26 | K19: =IFERROR(_FV(K7,"mass"), "Data not available") -> 8.68E+25 | L19: =IFERROR(_FV(L7,"mass"), "Data not available") -> 1.02E+26
B20: Physical properties | C20: Rotation period | D20: Earth days | E20: =IFERROR(_FV(E7,"rotation period",TRUE), "Data not available") -> 58.65 | F20: =IFERROR(_FV(F7,"rotation period",TRUE), "Data not available") -> -243.02 | G20: =IFERROR(_FV(G7,"rotation period",TRUE), "Data not available") -> 1.00 | H20: =IFERROR(_FV(H7,"rotation period",TRUE), "Data not available") -> 1.03 | I20: =IFERROR(_FV(I7,"rotation period",TRUE), "Data not available") -> 0.41 | J20: =IFERROR(_FV(J7,"rotation period",TRUE), "Data not available") -> 0.44 | K20: =IFERROR(_FV(K7,"rotation period",TRUE), "Data not available") -> -0.72 | L20: =IFERROR(_FV(L7,"rotation period",TRUE), "Data not available") -> 0.67
B21: Physical properties | C21: Mean density | D21: g/cm³ | E21: =IFERROR(_FV(E7,"mean density",TRUE),"Data not available") -> 5.43 | F21: =IFERROR(_FV(F7,"mean density",TRUE),"Data not available") -> 5.24 | G21: =IFERROR(_FV(G7,"mean density",TRUE),"Data not available") -> 5.52 | H21: =IFERROR(_FV(H7,"mean density",TRUE),"Data not available") -> 3.93 | I21: =IFERROR(_FV(I7,"mean density",TRUE),"Data not available") -> 1.33 | J21: =IFERROR(_FV(J7,"mean density",TRUE),"Data not available") -> 0.69 | K21: =IFERROR(_FV(K7,"mean density",TRUE),"Data not available") -> 1.27 | L21: =IFERROR(_FV(L7,"mean density",TRUE),"Data not available") -> 1.64
B22: Physical properties | C22: Gravity | D22: m/s² | E22: =IFERROR(_FV(E7,"gravity"),"Data not available") -> 3.70 | F22: =IFERROR(_FV(F7,"gravity"),"Data not available") -> 8.87 | G22: =IFERROR(_FV(G7,"gravity"),"Data not available") -> 9.80 | H22: =IFERROR(_FV(H7,"gravity"),"Data not available") -> 3.71 | I22: =IFERROR(_FV(I7,"gravity"),"Data not available") -> 24.79 | J22: =IFERROR(_FV(J7,"gravity"),"Data not available") -> 10.44 | K22: =IFERROR(_FV(K7,"gravity"),"Data not available") -> 8.87 | L22: =IFERROR(_FV(L7,"gravity"),"Data not available") -> 11.15
B23: Physical properties | C23: Volume | D23: m³ | E23: =IFERROR(_FV(E7,"volume"),"Data not available") -> 6.08E+19 | F23: =IFERROR(_FV(F7,"volume"),"Data not available") -> 9.28E+20 | G23: =IFERROR(_FV(G7,"volume"),"Data not available") -> 1.08E+21 | H23: =IFERROR(_FV(H7,"volume"),"Data not available") -> 1.63E+20 | I23: =IFERROR(_FV(I7,"volume"),"Data not available") -> 1.43E+24 | J23: =IFERROR(_FV(J7,"volume"),"Data not available") -> 8.27E+23 | K23: =IFERROR(_FV(K7,"volume"),"Data not available") -> 6.83E+22 | L23: =IFERROR(_FV(L7,"volume"),"Data not available") -> 6.25E+22
B24: Physical properties | C24: Surface area | D24: km² | E24: =IFERROR(_FV(E7,"surface area",TRUE),"Data not available") -> 7.48E+07 | F24: =IFERROR(_FV(F7,"surface area",TRUE),"Data not available") -> 4.60E+08 | G24: =IFERROR(_FV(G7,"surface area",TRUE),"Data not available") -> 5.10E+08 | H24: =IFERROR(_FV(H7,"surface area",TRUE),"Data not available") -> 1.44E+08 | I24: =IFERROR(_FV(I7,"surface area",TRUE),"Data not available") -> 6.15E+10 | J24: =IFERROR(_FV(J7,"surface area",TRUE),"Data not available") -> 4.27E+10 | K24: =IFERROR(_FV(K7,"surface area",TRUE),"Data not available") -> 8.08E+09 | L24: =IFERROR(_FV(L7,"surface area",TRUE),"Data not available") -> 7.62E+09
B25: Physical properties | C25: Obliquity | D25: degrees | E25: =IFERROR(_FV(E7,"obliquity"),"Data not available") -> 0.01 | F25: =IFERROR(_FV(F7,"obliquity"),"Data not available") -> 177.36 | G25: =IFERROR(_FV(G7,"obliquity"),"Data not available") -> 23.45 | H25: =IFERROR(_FV(H7,"obliquity"),"Data not available") -> 25.19 | I25: =IFERROR(_FV(I7,"obliquity"),"Data not available") -> 3.13 | J25: =IFERROR(_FV(J7,"obliquity"),"Data not available") -> 26.73 | K25: =IFERROR(_FV(K7,"obliquity"),"Data not available") -> 97.77 | L25: =IFERROR(_FV(L7,"obliquity"),"Data not available") -> 28.32
B26: Physical properties | C26: Number of moons | E26: =IFERROR(_FV(E7,"number of moons",TRUE), "Data not available") -> 0 | F26: =IFERROR(_FV(F7,"number of moons",TRUE), "Data not available") -> 0 | G26: =IFERROR(_FV(G7,"number of moons",TRUE), "Data not available") -> 1 | H26: =IFERROR(_FV(H7,"number of moons",TRUE), "Data not available") -> 2 | I26: =IFERROR(_FV(I7,"number of moons",TRUE), "Data not available") -> 79 | J26: =IFERROR(_FV(J7,"number of moons",TRUE), "Data not available") -> 82 | K26: =IFERROR(_FV(K7,"number of moons",TRUE), "Data not available") -> 27 | L26: =IFERROR(_FV(L7,"number of moons",TRUE), "Data not available") -> 14
B27: Physical properties
B28: Atmosphere | C28: Atmosphere
B29: Atmosphere | C29: Atmospheric pressure | D29: bar | E29: =IFERROR(_FV(E7,"atmospheric pressure",TRUE), "Data not available") -> 0.00 | F29: =IFERROR(_FV(F7,"atmospheric pressure",TRUE), "Data not available") -> 90.00 | G29: =IFERROR(_FV(G7,"atmospheric pressure",TRUE), "Data not available") -> 1.01 | H29: =IFERROR(_FV(H7,"atmospheric pressure",TRUE), "Data not available") -> 0.01 | I29: =IFERROR(_FV(I7,"atmospheric pressure",TRUE), "Data not available") -> 0.30 | J29: =IFERROR(_FV(J7,"atmospheric pressure",TRUE), "Data not available") -> 0.40 | K29: =IFERROR(_FV(K7,"atmospheric pressure",TRUE), "Data not available") -> 1.20 | L29: =IFERROR(_FV(L7,"atmospheric pressure",TRUE), "Data not available") -> 1.00
B30: Atmosphere | C30: Minimum temperature | D30: ˚C | E30: =IFERROR(_FV(E7,"minimum temperature",TRUE), "Data not available") -> -183.15 | F30: =IFERROR(_FV(F7,"minimum temperature",TRUE), "Data not available") -> 463.85 | G30: =IFERROR(_FV(G7,"minimum temperature",TRUE), "Data not available") -> -89.25 | H30: =IFERROR(_FV(H7,"minimum temperature",TRUE), "Data not available") -> -87.15 | I30: =IFERROR(_FV(I7,"minimum temperature",TRUE), "Data not available") -> -163.15 | J30: =IFERROR(_FV(J7,"minimum temperature",TRUE), "Data not available") -> -192.15 | K30: =IFERROR(_FV(K7,"minimum temperature",TRUE), "Data not available") -> -224.15 | L30: =IFERROR(_FV(L7,"minimum temperature",TRUE), "Data not available") -> -218.15
B31: Atmosphere | C31: Average temperature | D31: ˚C | E31: =IFERROR(_FV(E7,"average temperature",TRUE), "Data not available") -> 178.85 | F31: =IFERROR(_FV(F7,"average temperature",TRUE), "Data not available") -> 463.85 | G31: =IFERROR(_FV(G7,"average temperature",TRUE), "Data not available") -> 14.00 | H31: =IFERROR(_FV(H7,"average temperature",TRUE), "Data not available") -> -47.15 | I31: =IFERROR(_FV(I7,"average temperature",TRUE), "Data not available") -> -108.15 | J31: =IFERROR(_FV(J7,"average temperature",TRUE), "Data not available") -> -139.15 | K31: =IFERROR(_FV(K7,"average temperature",TRUE), "Data not available") -> -197.15 | L31: =IFERROR(_FV(L7,"average temperature",TRUE), "Data not available") -> -201.15
B32: Atmosphere | C32: Maximum temperature | D32: ˚C | E32: =IFERROR(_FV(E7,"maximum temperature",TRUE), "Data not available") -> 426.85 | F32: =IFERROR(_FV(F7,"maximum temperature",TRUE), "Data not available") -> 463.85 | G32: =IFERROR(_FV(G7,"maximum temperature",TRUE), "Data not available") -> 70.55 | H32: =IFERROR(_FV(H7,"maximum temperature",TRUE), "Data not available") -> -5.15 | I32: =IFERROR(_FV(I7,"maximum temperature",TRUE), "Data not available") -> 0.00 | J32: =IFERROR(_FV(J7,"maximum temperature",TRUE), "Data not available") -> -124.15 | K32: =IFERROR(_FV(K7,"maximum temperature",TRUE), "Data not available") -> -197.15 | L32: =IFERROR(_FV(L7,"maximum temperature",TRUE), "Data not available") -> -200.15

Sheet Planet explorer
B3: The planets of the Solar System
B4: Compare the planets of the Solar System by their physical, orbital, and atmospheric properties.
B5: Select the cell below and choose a property using the dropdown arrow.
B6: Mass
B10: =IFERROR(_xlfn.IFS($B$6="Volume","Charts scale is 1:10,000,000,000,000,000.",$B$6="Surface area", "Charts scale is 1:1,000,000.", $B$6="Mass", "Charts scale is 1:10,000,000,000,000,000,000."), "") -> Charts scale is 1:10,000,000,000,000,000,000.
C12: =IFERROR(_FV(C14,"image"), "") ->  | E12: =IFERROR(_FV(E14,"image"),"") ->  | G12: =IFERROR(_FV(G14,"image"), "") ->  | I12: =IFERROR(_FV(I14,"image"), "") ->  | K12: =IFERROR(_FV(K14,"image"), "") ->  | L12: =IFERROR(_FV(L14,"image"), "") ->  | M12: =IFERROR(_FV(M14,"image"), "") ->  | O12: =IFERROR(_FV(O14,"image"), "") -> 
B16: Our Sun is so large that scaling it with the other planets would make Mercury nearly invisible. While Jupiter is the largest of the planets, take a look at how small it is when next to the Sun.

Sheet Planet facts
B3: Learn fun facts about each planet
B4: Get to know some stellar facts about each planet!
B5: Select the cell below and choose a planet using the dropdown arrow. | G5: =IFERROR(_FV(B6,"image"), "No image available") -> 
B9: =IF(_FV($B$6,"name")="Earth","Size of Earth",_xlfn.CONCAT("Size of ",_FV($B$6,"name")," compared to Earth")) -> Size of Mercury compared to Earth
B10: Earth's radius | D10: =_FV('Solar System - Computations'!B6,"average radius",TRUE) -> 6,371.01 | E10: m | G10: =IF(_FV(B6,"name")="Earth", "", _xlfn.CONCAT("Radius of ",_FV( $B$6,"name")," compared to Earth's:")) -> Radius of Mercury compared to Earth's: | I10: =IF(G10="","",_FV($B$6,"average radius",TRUE)/$D$10) -> 0.38
B11: Earth's surface area | D11: =_FV('Solar System - Computations'!B6,"surface area",TRUE) -> 510,065,620.96 | E11: km² | G11: =IF(_FV(B6,"name")="Earth", "", _xlfn.CONCAT("Surface area of ",_FV( $B$6,"name")," compared to Earth's:")) -> Surface area of Mercury compared to Earth's: | I11: =IF(G11="", "",_FV( $B$6,"surface area",TRUE)/$D$11) -> 0.15
B13: =_xlfn.CONCAT("Your weight on ",_FV( $B$6,"name")) -> Your weight on Mercury
B15: Enter your weight and pick the unit (kg or lbs): | E15: lb | G15: =_xlfn.CONCAT("Your weight on ",_FV( $B$6,"name"), ": ") -> Your weight on Mercury: | I15: =IFERROR(IF(E15="kg",($D15/'Solar System - Computations'!G6)*_FV($B$6,"gravity"), ($D15/2.20462262/'Solar System - Computations'!G6)*_FV($B$6,"gravity")*2.20462262), 0) -> 0.0 | J15: =E15 -> lb
G16: =_xlfn.CONCAT("Your weight on ",_FV( $B$6,"name"), " = your weight on Earth / Earth's gravity * ",_FV( $B$6,"name"), "'s gravity") -> Your weight on Mercury = your weight on Earth / Earth's gravity * Mercury's gravity
B17: =_xlfn.CONCAT("How high you can jump on ",_FV( $B$6,"name")) -> How high you can jump on Mercury
B19: Enter how high you can jump and pick the unit (m or ft): | E19: ft | G19: =_xlfn.CONCAT("How high you can jump on ", _xlfn.XLOOKUP(B6,'Solar System - Computations'!B4:B11,'Solar System - Computations'!A4:A11), ":") -> How high you can jump on Mercury: | I19: =IFERROR('Solar System - Computations'!G6*$D$19/_FV($B$6,"gravity"), 0) -> 0.0 | J19: =E19 -> ft
G20: =_xlfn.CONCAT("How high you can jump on ",_FV( $B$6,"name"), " = Earth's gravity * how high you can jump on Earth / ",_FV( $B$6,"name"), "'s gravity") -> How high you can jump on Mercury = Earth's gravity * how high you can jump on Earth / Mercury's gravity
B21: Current sky map from your location* | G21: Current solar system configuration
B23: =IFERROR(_FV(B6,"current sky map from user location",TRUE), "") ->  | G23: =IFERROR(_FV(B6,"current solar system configuration",TRUE), "No current solar system configuration available") -> 
B24: Atmosphere | G24: Physical properties
B25: Average temperature | C25: ˚C | D25: =IFERROR(_FV(B6,"average temperature",TRUE), "Data not available") -> 178.85 | G25: Mass | H25: kg | I25: =IFERROR(_FV(B6,"mass"), "Data not available") -> 3.30E+23
B26: Minimum temperature | C26: ˚C | D26: =IFERROR(_FV(B6,"minimum temperature",TRUE), "Data not available") -> -183.15 | G26: Mean density | H26: g/cm³ | I26: =IFERROR(_FV(B6,"mean density",TRUE), "Data not available") -> 5.43E+00
B27: Maximum temperature | C27: ˚C | D27: =IFERROR(_FV(B6,"maximum temperature",TRUE), "Data not available") -> 426.85 | G27: Gravity | H27: m/s² | I27: =IFERROR(_FV(B6,"gravity"), "Data not available") -> 3.70
B28: Atmospheric pressure | C28: bar | D28: =IFERROR(_FV(B6,"atmospheric pressure",TRUE), "Data not available") -> 0.00 | G28: Rotation period | H28: Earth days | I28: =IFERROR(_FV(B6,"rotation period",TRUE), "Data not available") -> 58.65
G29: Equatorial radius | H29: km | I29: =IFERROR(_FV(B6,"equatorial radius",TRUE), "Data not available") -> 2.44E+03
B30: Orbital properties | G30: Volume | H30: m³ | I30: =IFERROR(_FV(B6,"volume"), "Data not available") -> 6.08E+19
B31: Average distance from the Sun | C31: au | D31: =IFERROR(_FV(B6,"average orbit distance",TRUE),"Data not available") -> 3.95E-01 | G31: Surface area | H31: km² | I31: =IFERROR(_FV(B6,"surface area",TRUE), "Data not available") -> 7.48E+07
B32: Current distance from Earth | C32: au | D32: =IFERROR(_FV(_FV(B6,"compute orbital properties",TRUE),"distance from Earth",TRUE), "Data not available") -> 1.32E+00 | G32: Obliquity | H32: degrees | I32: =IFERROR(_FV(B6,"obliquity"), "Data not available") -> 0.01
B33: Average distance from Earth | C33: au | D33: =IFERROR(_FV(B6,"average distance from Earth",TRUE), "Data not available") -> 1.04E+00 | G33: Number of moons | I33: =IFERROR(_FV(B6,"number of moons",TRUE), "Data not available") -> 0
B34: Orbital period | C34: Julian years | D34: =IFERROR(_FV(B6,"orbital period",TRUE), "Data not available") -> 0.24
B35: Average heliocentric velocity | C35: km/s | D35: =IFERROR(_FV(B6,"average heliocentric velocity",TRUE), "Data not available") -> 4.74E+01
B37: * The Space data types use the location of the closest Office server to your location. We do not store your location.

Sheet Comet list
B3: Track your favorite comets
B4: Keep track of your favorite comets and use the Comet lookup sheet to learn more about them. To add comets to the list, edit the examples or type below the last comet in the blue highlighted cell.
C5: Click the icon next to a comet to view more data about it.
C6: If you don't see data for a comet, you may need to convert it to the Space data type: select the comet name, go to the Data tab, and in the Data Types gallery menu, select the Space icon.
C7: To add more columns of information, select a star and then click on the Add Column icon in the top right corner of the list.
C9: Comets | D9: Average orbit velocity
D10: =IFERROR(_FV(Table2[[#This Row],[Comets]],"average orbit velocity",TRUE), "") -> 4.823447109
D11: =IFERROR(_FV(Table2[[#This Row],[Comets]],"average orbit velocity",TRUE), "") -> 7.671322188
D12: =IFERROR(_FV(Table2[[#This Row],[Comets]],"average orbit velocity",TRUE), "") -> 1.427897712
D13: =IFERROR(_FV(Table2[[#This Row],[Comets]],"average orbit velocity",TRUE), "") -> 15.66830867
D14: =IFERROR(_FV(Table2[[#This Row],[Comets]],"average orbit velocity",TRUE), "") -> 14.50965899
D15: =IFERROR(_FV(Table2[[#This Row],[Comets]],"average orbit velocity",TRUE), "") -> 0.3980039557
D16: =IFERROR(_FV(Table2[[#This Row],[Comets]],"average orbit velocity",TRUE), "") -> 14.89171726

Sheet Comet lookup
B3: Get to know the comets of the Solar System
B4: Look up any comet from your Comet list and find out if it's in viewing range from where you are.
B5: Select the cell below and choose a comet using the dropdown arrow.
B8: Current solar system configuration | F8: Current sky map from your location *
B10: =IFERROR(_FV(B6,"current solar system configuration",TRUE), "No current solar system configuration available") ->  | F10: =IFERROR(_FV(B6,"current sky map from user location",TRUE),"No current sky map available") -> 
B12: Orbital properties | F12: Physical properties
B13: Orbit Center | C13: =IFERROR(_FV(B6,"orbit center",TRUE), "Data not available") ->  | F13: Apparent magnitude | G13: =IFERROR(_FV(B6,"apparent magnitude",TRUE), "Data not available") -> 21.98863158
B14: Average distance from Earth | C14: =IFERROR(_FV(B6,"average distance from Earth",TRUE), "Data not available") -> 4.23 | D14: au | F14: Average radius | G14: =IFERROR(_FV(B6,"average radius",TRUE), "Data not available") -> 1.6 | H14: km
B15: Largest distance from the Sun | C15: =IFERROR(_FV(B6,"largest distance from the Sun",TRUE), "Data not available") -> 8.23E+08 | D15: km | F15: Volume | G15: =IFERROR(_FV(B6,"volume"), "Data not available") -> 1.72E+10 | H15: km³
B16: Smallest distance from the Sun | C16: =IFERROR(_FV(B6,"nearest distance from the Sun",TRUE), "Data not available") -> 2.94E+08 | D16: km | F16: Surface area | G16: =IFERROR(_FV(B6,"surface area",TRUE), "Data not available") -> 32.17 | H16: km2
B17: Average orbit distance | C17: =IFERROR(_FV(B6,"average orbit distance",TRUE),"Data not available") -> 4.15 | D17: au | F17: Age | G17: =IFERROR(_FV(B6,"age"), "Data not available") -> 4.50E+09 | H17: Earth years
B18: Orbital period | C18: =IFERROR(_FV(B6,"orbital period",TRUE), "Data not available") -> 7.22 | D18: Julian years
B19: Last periapsis time | C19: =IFERROR(_FV(_FV(B6,"compute orbital properties",TRUE),"last periapsis time",TRUE), "Data not available") -> 2020-11-19
B20: Next periapsis time | C20: =IFERROR(_FV(_FV(B6,"compute orbital properties",TRUE),"next periapsis time",TRUE), "Data not available") -> 2028-02-08
B22: Current sky properties
B23: Next rise | C23: =IFERROR(_FV(_FV(B6,"compute sky properties",TRUE),"next rise",TRUE), "Data not available") -> never sets
B24: Next set | C24: =IFERROR(_FV(_FV(B6,"compute sky properties",TRUE),"next set",TRUE), "Data not available") -> never sets
B25: Constellation | C25: =IFERROR(_FV(_FV(B6,"compute sky properties",TRUE),"constellation"), "Data not available") -> 
B27: * The Space data types use the location of the closest Office server to your location. We do not store your location.

Sheet Do more
B3: Do more with data types
B4: With linked data types, you can insert and work with reliable data from trusted online data sources. Microsoft has partnered with Wolfram to provide rich, interesting facts and data on numerous subjects that you can use and refresh—all without leaving Excel.
B5: Here's how to use data types using the Space data type as an example.
B6: ❶ | C6: Type Earth in the cell below.
C8: You can type other names for the same thing. For example, you can type Planet Earth if you want.
B10: ❷ | C10: With the cell above selected, go to the Data tab and in the Data Type Gallery menu, select the Space icon.
C11: If Excel doesn't recognize the planet, you'll get the option to search for the correct one or try another.
B14: ❸ | C14: Select the Insert Data icon that appears on the right of the cell to see a list of data options. Choose one or more options to add them to the sheet.
C17: And you're done! Your sheet will populate with all the facts and information you need directly from Excel.
C18: Check out this article to learn even more about data types

Sheet Solar System - Computations (hidden)
C1: Average temperature | D1: Mass | E1: Average orbit distance | F1: Average distance from Earth | G1: Gravity | H1: Rotation period | I1: Orbital period | J1: Equatorial radius | K1: Average orbit velocity | L1: Volume | M1: Surface area
B2: Unit | C2: ˚C | D2: kg | E2: au | F2: au | G2: m/s² | H2: Earth days | I2: Julian years | J2: km | K2: km/s | L2: m³ | M2: km²
A3: Strings | B3: Planets | C3: Average temperature | D3: Mass | E3: Average orbit distance | F3: Average distance from Earth | G3: Gravity | H3: Rotation period | I3: Orbital period | J3: Equatorial radius | K3: Average orbit velocity | L3: Volume | M3: Surface area | N3: number of moons | O3: obliquity
A4: Mercury | C4: =_FV(B4,"average temperature",TRUE) -> 178.85 | D4: =_FV(B4,"mass")/10000000000000000000 -> 3.3E+04 | E4: =_FV(B4,"average orbit distance",TRUE) -> 0.40 | F4: =_FV(B4,"average distance from Earth",TRUE) -> 1.04 | G4: =_FV(B4,"gravity") -> 3.70 | H4: =_FV(B4,"rotation period",TRUE) -> 58.65 | I4: =_FV(B4,"orbital period",TRUE) -> 0.24 | J4: =_FV(B4,"equatorial radius",TRUE) -> 2439.70 | K4: =_FV(B4,"average orbit velocity",TRUE) -> 47.36 | L4: =_FV(B4,"volume")/10000000000000000 -> 6.08E+03 | M4: =_FV(B4,"surface area",TRUE)/1000000 -> 7.48E+01 | N4: =_FV(B4,"number of moons",TRUE) -> 0.00 | O4: =_FV(B4,"obliquity") -> 0.01
A5: Venus | C5: =_FV(B5,"average temperature",TRUE) -> 463.85 | D5: =_FV(B5,"mass")/10000000000000000000 -> 4.9E+05 | E5: =_FV(B5,"average orbit distance",TRUE) -> 0.72 | F5: =_FV(B5,"average distance from Earth",TRUE) -> 1.14 | G5: =_FV(B5,"gravity") -> 8.87 | H5: =ABS(_FV(B5,"rotation period",TRUE)) -> 243.02 | I5: =_FV(B5,"orbital period",TRUE) -> 0.62 | J5: =_FV(B5,"equatorial radius",TRUE) -> 6051.80 | K5: =_FV(B5,"average orbit velocity",TRUE) -> 35.02 | L5: =_FV(B5,"volume")/10000000000000000 -> 9.28E+04 | M5: =_FV(B5,"surface area",TRUE)/1000000 -> 4.60E+02 | N5: =_FV(B5,"number of moons",TRUE) -> 0.00 | O5: =_FV(B5,"obliquity") -> 177.36
A6: Earth | C6: 14.00 | D6: =_FV(B6,"mass")/10000000000000000000 -> 6.0E+05 | E6: 1.00 | F6: 0.00 | G6: 9.80 | H6: =_FV(B6,"rotation period",TRUE) -> 1.00 | I6: =_FV(B6,"orbital period",TRUE) -> 1.00 | J6: =_FV(B6,"equatorial radius",TRUE) -> 6378.14 | K6: =_FV(B6,"average orbit velocity",TRUE) -> 29.78 | L6: =_FV(B6,"volume")/10000000000000000 -> 1.08E+05 | M6: =_FV(B6,"surface area",TRUE)/1000000 -> 5.10E+02 | N6: =_FV(B6,"number of moons",TRUE) -> 1.00 | O6: =_FV(B6,"obliquity") -> 23.45
A7: Mars | C7: -47.15 | D7: =_FV(B7,"mass")/10000000000000000000 -> 6.4E+04 | E7: 1.53 | F7: 1.70 | G7: 3.71 | H7: =_FV(B7,"rotation period",TRUE) -> 1.03 | I7: =_FV(B7,"orbital period",TRUE) -> 1.88 | J7: =_FV(B7,"equatorial radius",TRUE) -> 3396.19 | K7: =_FV(B7,"average orbit velocity",TRUE) -> 24.08 | L7: =_FV(B7,"volume")/10000000000000000 -> 1.63E+04 | M7: =_FV(B7,"surface area",TRUE)/1000000 -> 1.44E+02 | N7: =_FV(B7,"number of moons",TRUE) -> 2.00 | O7: =_FV(B7,"obliquity") -> 25.19
A8: Jupiter | C8: -108.15 | D8: =_FV(B8,"mass")/10000000000000000000 -> 1.9E+08 | E8: 5.21 | F8: 5.26 | G8: 24.79 | H8: =_FV(B8,"rotation period",TRUE) -> 0.41 | I8: =_FV(B8,"orbital period",TRUE) -> 11.86 | J8: =_FV(B8,"equatorial radius",TRUE) -> 71492.00 | K8: =_FV(B8,"average orbit velocity",TRUE) -> 13.05 | L8: =_FV(B8,"volume")/10000000000000000 -> 1.43E+08 | M8: =_FV(B8,"surface area",TRUE)/1000000 -> 6.15E+04 | N8: =_FV(B8,"number of moons",TRUE) -> 79.00 | O8: =_FV(B8,"obliquity") -> 3.13
A9: Saturn | C9: -139.15 | D9: =_FV(B9,"mass")/10000000000000000000 -> 5.7E+07 | E9: 9.55 | F9: 9.58 | G9: 10.44 | H9: =_FV(B9,"rotation period",TRUE) -> 0.44 | I9: =_FV(B9,"orbital period",TRUE) -> 29.45 | J9: =_FV(B9,"equatorial radius",TRUE) -> 60268.00 | K9: =_FV(B9,"average orbit velocity",TRUE) -> 9.64 | L9: =_FV(B9,"volume")/10000000000000000 -> 8.27E+07 | M9: =_FV(B9,"surface area",TRUE)/1000000 -> 4.27E+04 | N9: =_FV(B9,"number of moons",TRUE) -> 82.00 | O9: =_FV(B9,"obliquity") -> 26.73
A10: Uranus | C10: -197.15 | D10: =_FV(B10,"mass")/10000000000000000000 -> 8.7E+06 | E10: 19.21 | F10: 19.23 | G10: 8.87 | H10: =ABS(_FV(B10,"rotation period",TRUE)) -> 0.72 | I10: =_FV(B10,"orbital period",TRUE) -> 84.02 | J10: =_FV(B10,"equatorial radius",TRUE) -> 25559.00 | K10: =_FV(B10,"average orbit velocity",TRUE) -> 6.80 | L10: =_FV(B10,"volume")/10000000000000000 -> 6.83E+06 | M10: =_FV(B10,"surface area",TRUE)/1000000 -> 8.08E+03 | N10: =_FV(B10,"number of moons",TRUE) -> 27.00 | O10: =_FV(B10,"obliquity") -> 97.77
A11: Neptune | C11: -201.15 | D11: =_FV(B11,"mass")/10000000000000000000 -> 1.0E+07 | E11: 30.07 | F11: 30.08 | G11: 11.15 | H11: =_FV(B11,"rotation period",TRUE) -> 0.67 | I11: =_FV(B11,"orbital period",TRUE) -> 164.79 | J11: =_FV(B11,"equatorial radius",TRUE) -> 24764.00 | K11: =_FV(B11,"average orbit velocity",TRUE) -> 5.43 | L11: =_FV(B11,"volume")/10000000000000000 -> 6.25E+06 | M11: =_FV(B11,"surface area",TRUE)/1000000 -> 7.62E+03 | N11: =_FV(B11,"number of moons",TRUE) -> 14.00 | O11: =_FV(B11,"obliquity") -> 28.32
B13: Calculations for the dashboard of sheet 2
B14: Planets | C14: ='Planet explorer'!B6 -> Mass | D14: Unit
C15: =INDEX($C$4:$M$11,MATCH($B15,$B$4:$B$11,0),MATCH($C$14,$C$3:$M$3,0)) -> 33,011.29 | D15: =_xlfn.CONCAT(C14, " (", INDEX(C2:M2,MATCH(D14,B2,0),MATCH(C14,C1:M1,0)), ")") -> Mass (kg)
C16: =INDEX($C$4:$M$11,MATCH($B16,$B$4:$B$11,0),MATCH($C$14,$C$3:$M$3,0)) -> 486,747.24
C17: 597,220.00
C18: 64,171.20
C19: 189,818,722.58
C20: 56,833,581.56
C21: 8,681,254.94
C22: 10,243,402.84
B26: calculations for image size in sheet 1
B27: =B4:B11 ->  | C27: =J4:J11 -> 2440 | D27: =_xlfn.ANCHORARRAY(C27)/C27 -> 1 | E27: 1 | H27: =_FV(B27,"average distance from Earth",TRUE) -> 1.038926553 | I27: =I28-H27 -> -2.175044342
C28: 6051.8 | D28: 2.480550887 | E28: =$D28*$E$27 -> 2.480550887 | H28: =_FV(B28,"average distance from Earth",TRUE) -> 1.136117789 | I28: =-H28 -> -1.136117789
C29: 6378.137 | D29: 2.61 | E29: =$D29*$E$27 -> 2.614312006 | H29: =_FV(B29,"average distance from Earth",TRUE) -> 0 | I29: 0
C30: 3396.19 | D30: 1.39 | E30: 1.392052302 | H30: =_FV(B30,"average distance from Earth",TRUE) -> 1.701083711
C31: 71492 | D31: 29.3036029 | E31: =$D31*$E$27 -> 29.3036029 | F31: 1 | G31: =G35/F35 -> 3.010946672 | H31: =_FV(B31,"average distance from Earth",TRUE) -> 5.257608662 | I31: =$H31-SUM($H$29:H30) -> 3.556524951
C32: 60268 | D32: 24.70303726 | E32: 24.70303726 | H32: =_FV(B32,"average distance from Earth",TRUE) -> 9.575985961 | I32: =$H32-SUM($H$29:H31) -> 2.617293589
C33: 25559 | D33: 10.47628807 | E33: 10.47628807 | H33: =_FV(B33,"average distance from Earth",TRUE) -> 19.22520534 | I33: =$H33-SUM($H$29:H32) -> 2.690527002
C34: 24,764 | D34: 10.15042833 | E34: 10.15042833 | H34: =_FV(B34,"average distance from Earth",TRUE) -> 30.07827995 | I34: =$H34-SUM($H$29:H33) -> -5.681603717
C35: =_FV(B35,"average radius",TRUE) -> 695,700 | D35: =C35/C27 -> 285.1580112 | E35: 285.1580112 | F35: =C35/C31*F31 -> 9.731158731 | G35: 29.3
B38: kg | C38: 1
B39: lb | C39: 2.20462262 | E39: =E35/2 -> 142.5790056
E40: =E39/4 -> 35.6447514
B41: ft | C41: 1 | E41: =E40/2 -> 17.8223757
B42: m | C42: 0.3048
B46: =_xlfn._xlws.FILTER(Table2[Comets], Table2[Comets]<>"") -> 
